[Event "Late-Titled-Tuesday-Blitz-June-04-2024"]
[Site "Chess.com"]
[Date "2024.06.04"]
[Round "4"]
[White "osh1ro"]
[Black "Good_Knight_Kiss"]
[Result "1-0"]
[WhiteElo "2624"]
[BlackElo "2352"]
[TimeControl "180+1"]
[EndTime "14:39:06 PDT"]
[Termination "osh1ro won on time"]

1. d4 {[%clk 0:03:00.9]} 1... Nf6 {[%clk 0:02:59.7]} 2. c4 {[%clk 0:03:00.3]}
2... g6 {[%clk 0:03:00]} 3. Nc3 {[%clk 0:03:00.3]} 3... Bg7 {[%clk 0:02:59.9]}
4. e4 {[%clk 0:03:00.1]} 4... d6 {[%clk 0:03:00.2]} 5. Nf3 {[%clk 0:03:00.6]}
5... O-O {[%clk 0:02:59.9]} 6. Be2 {[%clk 0:03:01.3]} 6... e5 {[%clk 0:02:59.6]}
7. dxe5 {[%clk 0:03:02.2]} 7... dxe5 {[%clk 0:02:58.4]} 8. Qxd8 {[%clk
0:03:03.1]} 8... Rxd8 {[%clk 0:02:58.7]} 9. Nd5 {[%clk 0:03:04]} 9... Nxd5
{[%clk 0:02:47.7]} 10. cxd5 {[%clk 0:03:04.1]} 10... c6 {[%clk 0:02:46.5]} 11.
Bc4 {[%clk 0:03:04.1]} 11... b5 {[%clk 0:02:46.1]} 12. Bb3 {[%clk 0:03:03.8]}
12... Bb7 {[%clk 0:02:37.7]} 13. Bg5 {[%clk 0:03:03]} 13... Re8 {[%clk
0:02:35.8]} 14. Rc1 {[%clk 0:03:01.5]} 14... a5 {[%clk 0:02:29.4]} 15. a4 {[%clk
0:02:31.8]} 15... bxa4 {[%clk 0:02:07.7]} 16. Bxa4 {[%clk 0:02:30.1]} 16... Rc8
{[%clk 0:02:07.2]} 17. O-O {[%clk 0:02:05.6]} 17... cxd5 {[%clk 0:01:54.1]} 18.
exd5 {[%clk 0:02:05.5]} 18... e4 {[%clk 0:01:32.2]} 19. Nd2 {[%clk 0:02:00.8]}
19... Na6 {[%clk 0:01:10.5]} 20. d6 {[%clk 0:01:47]} 20... f6 {[%clk 0:00:50.2]}
21. Bf4 {[%clk 0:01:37]} 21... Nc5 {[%clk 0:00:38.4]} 22. d7 {[%clk 0:01:36]}
22... Nxa4 {[%clk 0:00:34.5]} 23. dxc8=Q+ {[%clk 0:01:18.2]} 23... Rxc8 {[%clk
0:00:31.5]} 24. Rxc8+ {[%clk 0:01:11.1]} 24... Bxc8 {[%clk 0:00:32.4]} 25. Rc1
{[%clk 0:01:10.7]} 25... Bf5 {[%clk 0:00:26.3]} 26. b3 {[%clk 0:01:07.8]} 26...
Nb2 {[%clk 0:00:22.2]} 27. Be3 {[%clk 0:01:03.1]} 27... Bf8 {[%clk 0:00:16.3]}
28. Rc8 {[%clk 0:00:55.7]} 28... Kf7 {[%clk 0:00:14.6]} 29. Nc4 {[%clk
0:00:51.1]} 29... Nxc4 {[%clk 0:00:12.7]} 30. Rxc4 {[%clk 0:00:51]} 30... Bb4
{[%clk 0:00:11.6]} 31. Rc7+ {[%clk 0:00:46.7]} 31... Ke6 {[%clk 0:00:09.9]} 32.
Rxh7 {[%clk 0:00:45.4]} 32... Ke5 {[%clk 0:00:09.3]} 33. Ra7 {[%clk 0:00:38.5]}
33... Be6 {[%clk 0:00:08.8]} 34. Bb6 {[%clk 0:00:38.7]} 34... Bxb3 {[%clk
0:00:07]} 35. Bxa5 {[%clk 0:00:38.9]} 35... Bxa5 {[%clk 0:00:07.1]} 36. Rxa5+
{[%clk 0:00:38.4]} 36... Ke6 {[%clk 0:00:05.2]} 37. Kf1 {[%clk 0:00:36.6]} 37...
f5 {[%clk 0:00:03.2]} 38. g3 {[%clk 0:00:34.2]} 38... Bc4+ {[%clk 0:00:02.5]}
39. Ke1 {[%clk 0:00:33.8]} 39... Bd3 {[%clk 0:00:02.4]} 40. Kd2 {[%clk 0:00:34]}
40... Kf6 {[%clk 0:00:02.2]} 41. Ke3 {[%clk 0:00:34.4]} 41... Bf1 {[%clk
0:00:02.1]} 42. Rc5 {[%clk 0:00:33.7]} 42... Kg5 {[%clk 0:00:01.9]} 43. h4+
{[%clk 0:00:32.9]} 43... Kh5 {[%clk 0:00:01.5]} 44. Kf4 {[%clk 0:00:32.8]} 44...
Be2 {[%clk 0:00:01.8]} 45. Rc8 {[%clk 0:00:32]} 45... Kh6 {[%clk 0:00:01.1]} 46.
Rc2 {[%clk 0:00:22.9]} 46... Bh5 {[%clk 0:00:01.2]} 47. Rc7 {[%clk 0:00:23.1]}
47... Bg4 {[%clk 0:00:01.6]} 48. Ke5 {[%clk 0:00:19.4]} 48... Bh5 {[%clk
0:00:01.9]} 49. Kf6 {[%clk 0:00:19.3]} 49... Bg4 {[%clk 0:00:01.9]} 50. Rg7
{[%clk 0:00:19.3]} 50... Bh5 {[%clk 0:00:01.6]} 51. Ra7 {[%clk 0:00:14.7]} 51...
Bg4 {[%clk 0:00:01.5]} 52. Ra8 {[%clk 0:00:15]} 52... Kh7 {[%clk 0:00:01.3]} 53.
Kg5 {[%clk 0:00:15.3]} 53... Bh5 {[%clk 0:00:01]} 54. Ra7+ {[%clk 0:00:16.2]}
54... Kg8 {[%clk 0:00:01.2]} 55. Kf6 {[%clk 0:00:16.9]} 1-0

[Event "Late-Titled-Tuesday-Blitz-June-04-2024"]
[Site "Chess.com"]
[Date "2024.06.04"]
[Round "4"]
[White "HalfIsCrayfish"]
[Black "Arash_Tahbaz"]
[Result "0-1"]
[WhiteElo "2553"]
[BlackElo "2831"]
[TimeControl "180+1"]
[EndTime "14:39:15 PDT"]
[Termination "Arash_Tahbaz won on time"]

1. d4 {[%clk 0:03:00.9]} 1... Nf6 {[%clk 0:02:36.3]} 2. c4 {[%clk 0:02:59.3]}
2... e6 {[%clk 0:02:35.9]} 3. Nc3 {[%clk 0:02:59.4]} 3... d5 {[%clk 0:02:36.8]}
4. cxd5 {[%clk 0:02:59.2]} 4... exd5 {[%clk 0:02:37.7]} 5. Bg5 {[%clk
0:02:59.5]} 5... c6 {[%clk 0:02:37.4]} 6. e3 {[%clk 0:02:59.9]} 6... Be7 {[%clk
0:02:36.6]} 7. Bd3 {[%clk 0:03:00.3]} 7... h6 {[%clk 0:02:36.6]} 8. Bh4 {[%clk
0:03:00.3]} 8... O-O {[%clk 0:02:37.3]} 9. Qc2 {[%clk 0:03:00.2]} 9... Ne8
{[%clk 0:02:38]} 10. Bg3 {[%clk 0:02:54.5]} 10... Nd6 {[%clk 0:02:30.5]} 11. Nf3
{[%clk 0:02:52.6]} 11... Re8 {[%clk 0:02:24.7]} 12. O-O-O {[%clk 0:02:52]} 12...
Be6 {[%clk 0:02:21.7]} 13. Kb1 {[%clk 0:02:50.7]} 13... a5 {[%clk 0:02:19.4]}
14. e4 {[%clk 0:02:48]} 14... dxe4 {[%clk 0:02:04.8]} 15. Nxe4 {[%clk
0:02:48.9]} 15... Nxe4 {[%clk 0:02:05.3]} 16. Bxe4 {[%clk 0:02:49.8]} 16... Na6
{[%clk 0:02:05.7]} 17. a3 {[%clk 0:02:46]} 17... Nb4 {[%clk 0:02:00.6]} 18. axb4
{[%clk 0:02:38.7]} 18... axb4 {[%clk 0:02:01.5]} 19. b3 {[%clk 0:02:11.8]} 19...
Ra3 {[%clk 0:01:46.2]} 20. d5 {[%clk 0:02:10.1]} 20... cxd5 {[%clk 0:01:47.1]}
21. Qb2 {[%clk 0:01:51.9]} 21... Qa5 {[%clk 0:01:44]} 22. Bc2 {[%clk 0:01:51.6]}
22... Bf6 {[%clk 0:01:40.8]} 23. Be5 {[%clk 0:01:50.8]} 23... Ra8 {[%clk
0:01:40.8]} 24. Bxf6 {[%clk 0:01:41.3]} 24... gxf6 {[%clk 0:01:41.7]} 25. Kc1
{[%clk 0:01:39.1]} 25... Ra2 {[%clk 0:01:25.1]} 26. Qxf6 {[%clk 0:01:35]} 26...
Rc8 {[%clk 0:01:19.9]} 27. Nd4 {[%clk 0:01:29.6]} 27... Qc5 {[%clk 0:01:19.6]}
28. Rd3 {[%clk 0:00:43.1]} 28... Rxc2+ {[%clk 0:01:16.9]} 29. Kd1 {[%clk
0:00:43.4]} 29... Rc1+ {[%clk 0:00:48.8]} 30. Kd2 {[%clk 0:00:38.2]} 30... Rc2+
{[%clk 0:00:36.2]} 31. Nxc2 {[%clk 0:00:35.3]} 31... Qxc2+ {[%clk 0:00:32.6]}
32. Ke3 {[%clk 0:00:35.6]} 32... Rc3 {[%clk 0:00:29.7]} 33. Rxc3 {[%clk
0:00:21.5]} 33... bxc3 {[%clk 0:00:30.6]} 34. Qd4 {[%clk 0:00:21.8]} 34... Qxb3
{[%clk 0:00:28.9]} 35. Rc1 {[%clk 0:00:20.1]} 35... c2+ {[%clk 0:00:28.3]} 36.
Kd2 {[%clk 0:00:20.3]} 36... Bf5 {[%clk 0:00:29.2]} 37. g4 {[%clk 0:00:17.5]}
37... Be4 {[%clk 0:00:28.9]} 38. g5 {[%clk 0:00:15.5]} 38... hxg5 {[%clk
0:00:26.1]} 39. Qf6 {[%clk 0:00:15.8]} 39... Qd3+ {[%clk 0:00:17]} 40. Ke1
{[%clk 0:00:15.5]} 40... Bf3 {[%clk 0:00:17.6]} 41. Qxg5+ {[%clk 0:00:14.3]}
41... Kh7 {[%clk 0:00:18.2]} 42. Qd2 {[%clk 0:00:11.2]} 42... Qe4+ {[%clk
0:00:17.2]} 43. Qe3 {[%clk 0:00:11.5]} 43... Qg4 {[%clk 0:00:16.3]} 44. Kd2
{[%clk 0:00:10.2]} 44... Be4 {[%clk 0:00:15.4]} 45. f3 {[%clk 0:00:08.7]} 45...
Bxf3 {[%clk 0:00:11.1]} 46. Rxc2 {[%clk 0:00:06]} 46... d4 {[%clk 0:00:11.5]}
47. Qf2 {[%clk 0:00:04.2]} 47... Qf4+ {[%clk 0:00:10.7]} 48. Ke1 {[%clk
0:00:04.8]} 48... Qe4+ {[%clk 0:00:10.7]} 49. Kd2 {[%clk 0:00:04.6]} 49... Bh5
{[%clk 0:00:08.8]} 50. Rc1 {[%clk 0:00:03.8]} 50... Bg6 {[%clk 0:00:09]} 51. Qe2
{[%clk 0:00:02]} 51... Qf4+ {[%clk 0:00:09.1]} 52. Kd1 {[%clk 0:00:02.5]} 52...
d3 {[%clk 0:00:09.7]} 53. Qe1 {[%clk 0:00:01.9]} 53... Bh5+ {[%clk 0:00:10.1]}
0-1

[Event "Late-Titled-Tuesday-Blitz-June-04-2024"]
[Site "Chess.com"]
[Date "2024.06.04"]
[Round "4"]
[White "Kacparov"]
[Black "Stanbad1"]
[Result "1-0"]
[WhiteElo "2912"]
[BlackElo "2657"]
[TimeControl "180+1"]
[EndTime "14:39:19 PDT"]
[Termination "Kacparov won by resignation"]

1. e4 {[%clk 0:02:59.2]} 1... e6 {[%clk 0:02:59.7]} 2. d4 {[%clk 0:02:59.2]}
2... d5 {[%clk 0:02:57.3]} 3. Nd2 {[%clk 0:02:59.7]} 3... Nf6 {[%clk 0:02:57.4]}
4. e5 {[%clk 0:02:59.6]} 4... Nfd7 {[%clk 0:02:58]} 5. Bd3 {[%clk 0:03:00.2]}
5... c5 {[%clk 0:02:58.4]} 6. c3 {[%clk 0:03:00.9]} 6... Nc6 {[%clk 0:02:59]} 7.
Ngf3 {[%clk 0:03:01.2]} 7... Be7 {[%clk 0:02:58]} 8. O-O {[%clk 0:03:01.2]} 8...
g5 {[%clk 0:02:58.6]} 9. dxc5 {[%clk 0:03:01.3]} 9... Ndxe5 {[%clk 0:02:57.6]}
10. Nxe5 {[%clk 0:02:50.4]} 10... Nxe5 {[%clk 0:02:51.1]} 11. Bb5+ {[%clk
0:02:48.4]} 11... Bd7 {[%clk 0:02:51]} 12. Bxd7+ {[%clk 0:02:46.4]} 12... Qxd7
{[%clk 0:02:50.5]} 13. Nb3 {[%clk 0:02:46.5]} 13... h6 {[%clk 0:02:46.3]} 14. f4
{[%clk 0:02:42.7]} 14... gxf4 {[%clk 0:02:45.5]} 15. Bxf4 {[%clk 0:02:42.7]}
15... Ng6 {[%clk 0:02:45.6]} 16. Qh5 {[%clk 0:02:31.9]} 16... Rg8 {[%clk
0:02:43.6]} 17. Bg3 {[%clk 0:02:25.5]} 17... O-O-O {[%clk 0:02:40.5]} 18. Kh1
{[%clk 0:02:18.7]} 18... Bg5 {[%clk 0:02:40.2]} 19. Rad1 {[%clk 0:02:07.4]}
19... f5 {[%clk 0:02:39.2]} 20. Bd6 {[%clk 0:02:06.4]} 20... Be7 {[%clk
0:02:28.8]} 21. Bxe7 {[%clk 0:02:03.1]} 21... Qxe7 {[%clk 0:02:25.4]} 22. Nd4
{[%clk 0:02:02.8]} 22... Ne5 {[%clk 0:02:17.5]} 23. Rde1 {[%clk 0:01:56.8]}
23... Qg7 {[%clk 0:02:03.3]} 24. g3 {[%clk 0:01:40]} 24... Rde8 {[%clk
0:01:59.7]} 25. Qe2 {[%clk 0:01:31.4]} 25... Nc6 {[%clk 0:01:43.3]} 26. Nb5
{[%clk 0:01:15.6]} 26... Re7 {[%clk 0:01:39.9]} 27. Nd6+ {[%clk 0:01:13]} 27...
Kb8 {[%clk 0:01:37.9]} 28. b4 {[%clk 0:01:12.9]} 28... Qxc3 {[%clk 0:01:36.1]}
29. a3 {[%clk 0:00:57.5]} 29... Qxa3 {[%clk 0:01:33.7]} 30. Rb1 {[%clk
0:00:56.9]} 30... Qc3 {[%clk 0:01:27.5]} 31. Rfc1 {[%clk 0:00:53.5]} 31... Qe5
{[%clk 0:01:26.7]} 32. Qd2 {[%clk 0:00:46.7]} 32... d4 {[%clk 0:01:25.2]} 33.
Nc4 {[%clk 0:00:36.9]} 33... Qd5+ {[%clk 0:01:24.8]} 34. Kg1 {[%clk 0:00:37.6]}
34... e5 {[%clk 0:01:18.8]} 35. b5 {[%clk 0:00:37.5]} 35... Nd8 {[%clk
0:01:18.4]} 36. c6 {[%clk 0:00:37.4]} 36... f4 {[%clk 0:01:18.2]} 37. b6 {[%clk
0:00:34.4]} 37... Nxc6 {[%clk 0:00:48.6]} 38. bxa7+ {[%clk 0:00:34.1]} 38... Kc7
{[%clk 0:00:48.5]} 39. a8=Q {[%clk 0:00:26.3]} 39... Rxa8 {[%clk 0:00:46.4]} 40.
Nb6 {[%clk 0:00:26.1]} 40... Qa5 {[%clk 0:00:46]} 41. Nxa8+ {[%clk 0:00:22.2]}
41... Qxa8 {[%clk 0:00:46.9]} 42. Qb4 {[%clk 0:00:18]} 42... Kd8 {[%clk
0:00:34.4]} 43. Qd6+ {[%clk 0:00:17.7]} 43... Ke8 {[%clk 0:00:34]} 44. Qg6+
{[%clk 0:00:17.4]} 44... Kd7 {[%clk 0:00:30.9]} 45. Qf5+ {[%clk 0:00:17.3]}
45... Kd6 {[%clk 0:00:29]} 46. Qe4 {[%clk 0:00:12.9]} 46... fxg3 {[%clk
0:00:27.9]} 47. hxg3 {[%clk 0:00:13.8]} 47... Qa3 {[%clk 0:00:23.8]} 48. Kh2
{[%clk 0:00:14.2]} 48... Qa2+ {[%clk 0:00:17.4]} 49. Kh3 {[%clk 0:00:14]} 49...
Qe6+ {[%clk 0:00:17.2]} 50. Kh2 {[%clk 0:00:14.3]} 50... Qd5 {[%clk 0:00:17.3]}
51. Qg6+ {[%clk 0:00:13.7]} 51... Re6 {[%clk 0:00:17.8]} 52. Qg7 {[%clk
0:00:13.1]} 52... Re7 {[%clk 0:00:17.6]} 53. Qf6+ {[%clk 0:00:13]} 53... Qe6
{[%clk 0:00:18]} 54. Qf8 {[%clk 0:00:13.4]} 54... e4 {[%clk 0:00:17.6]} 55. Rxb7
{[%clk 0:00:12.8]} 55... Kd5 {[%clk 0:00:16]} 56. Rxc6 {[%clk 0:00:11.3]} 56...
Qxc6 {[%clk 0:00:15.8]} 57. Rxe7 {[%clk 0:00:11.4]} 57... Qc2+ {[%clk
0:00:15.6]} 58. Kh3 {[%clk 0:00:11.9]} 58... Qe2 {[%clk 0:00:15.8]} 59. Qf5+
{[%clk 0:00:11.7]} 59... Kc4 {[%clk 0:00:15.8]} 60. Rxe4 {[%clk 0:00:11.6]}
60... Qd1 {[%clk 0:00:15.2]} 61. Qe6+ {[%clk 0:00:11.5]} 61... Kd3 {[%clk
0:00:15.4]} 62. Rxd4+ {[%clk 0:00:10.7]} 1-0

[Event "Late-Titled-Tuesday-Blitz-June-04-2024"]
[Site "Chess.com"]
[Date "2024.06.04"]
[Round "4"]
[White "whiteglovethief"]
[Black "emeli_chess"]
[Result "1-0"]
[WhiteElo "2530"]
[BlackElo "2367"]
[TimeControl "180+1"]
[EndTime "14:39:21 PDT"]
[Termination "whiteglovethief won by checkmate"]

1. d4 {[%clk 0:02:58.6]} 1... Nf6 {[%clk 0:02:59.4]} 2. c4 {[%clk 0:02:52]} 2...
e6 {[%clk 0:02:59.7]} 3. Nf3 {[%clk 0:02:51.8]} 3... d5 {[%clk 0:02:59.3]} 4. g3
{[%clk 0:02:51.4]} 4... dxc4 {[%clk 0:02:58.8]} 5. Bg2 {[%clk 0:02:51.6]} 5...
Nc6 {[%clk 0:02:59]} 6. O-O {[%clk 0:02:51.6]} 6... Rb8 {[%clk 0:02:59.3]} 7. a4
{[%clk 0:02:48.8]} 7... a6 {[%clk 0:02:58.2]} 8. a5 {[%clk 0:02:48.3]} 8... Bd6
{[%clk 0:02:57.2]} 9. Nbd2 {[%clk 0:02:44.9]} 9... e5 {[%clk 0:02:53.2]} 10.
Nxc4 {[%clk 0:02:40.5]} 10... exd4 {[%clk 0:02:50]} 11. Nxd4 {[%clk 0:02:40.1]}
11... Nxd4 {[%clk 0:02:39.7]} 12. Qxd4 {[%clk 0:02:41]} 12... Be7 {[%clk
0:02:24]} 13. Qxd8+ {[%clk 0:02:29.9]} 13... Bxd8 {[%clk 0:02:21.1]} 14. Bf4
{[%clk 0:02:30.5]} 14... O-O {[%clk 0:02:18.9]} 15. Rac1 {[%clk 0:02:25.7]}
15... Be6 {[%clk 0:02:06.1]} 16. Rfd1 {[%clk 0:02:12]} 16... h6 {[%clk
0:02:02.7]} 17. h4 {[%clk 0:02:11.2]} 17... Re8 {[%clk 0:01:45.6]} 18. Ne3
{[%clk 0:01:49.8]} 18... Nh5 {[%clk 0:01:26.7]} 19. Bxc7 {[%clk 0:01:46.9]}
19... Bxc7 {[%clk 0:01:23.2]} 20. Rxc7 {[%clk 0:01:47.8]} 20... b6 {[%clk
0:01:16.8]} 21. b4 {[%clk 0:01:30.5]} 21... bxa5 {[%clk 0:01:15.3]} 22. bxa5
{[%clk 0:01:31.4]} 22... Rb2 {[%clk 0:01:07.5]} 23. Bf3 {[%clk 0:01:23.9]} 23...
g6 {[%clk 0:00:45.3]} 24. Ra7 {[%clk 0:01:21.5]} 24... Bh3 {[%clk 0:00:26.5]}
25. Bxh5 {[%clk 0:01:20.4]} 25... gxh5 {[%clk 0:00:25.9]} 26. Rxa6 {[%clk
0:01:17.2]} 26... Rxe2 {[%clk 0:00:24.5]} 27. Rxh6 {[%clk 0:01:17.1]} 27... Bg4
{[%clk 0:00:22.5]} 28. Ra1 {[%clk 0:01:09.6]} 28... Bf3 {[%clk 0:00:20.8]} 29.
a6 {[%clk 0:01:07]} 29... Rb8 {[%clk 0:00:18.6]} 30. a7 {[%clk 0:01:06.1]} 30...
Rbb2 {[%clk 0:00:18.7]} 31. Rf6 {[%clk 0:01:00.6]} 31... Ba8 {[%clk 0:00:16.8]}
32. Nc4 {[%clk 0:00:54.8]} 32... Rb4 {[%clk 0:00:12.5]} 33. Nb6 {[%clk
0:00:53.6]} 33... Bb7 {[%clk 0:00:11.9]} 34. a8=Q+ {[%clk 0:00:53]} 34... Bxa8
{[%clk 0:00:11.9]} 35. Rxa8+ {[%clk 0:00:52.4]} 35... Kg7 {[%clk 0:00:12.8]} 36.
Nd5 {[%clk 0:00:38.4]} 36... Rb1+ {[%clk 0:00:12.2]} 37. Kg2 {[%clk 0:00:37.6]}
37... Rbb2 {[%clk 0:00:12.3]} 38. Rf3 {[%clk 0:00:35.3]} 38... Rbd2 {[%clk
0:00:12]} 39. Nf4 {[%clk 0:00:35.2]} 39... Re1 {[%clk 0:00:12.9]} 40. Nxh5+
{[%clk 0:00:35.3]} 40... Kg6 {[%clk 0:00:13.7]} 41. Nf4+ {[%clk 0:00:35.5]}
41... Kg7 {[%clk 0:00:13.4]} 42. Ra5 {[%clk 0:00:33.8]} 42... Rdd1 {[%clk
0:00:13.8]} 43. Rg5+ {[%clk 0:00:34.4]} 43... Kh6 {[%clk 0:00:13.3]} 44. Nh3
{[%clk 0:00:33.2]} 44... f6 {[%clk 0:00:12.6]} 45. Rxf6+ {[%clk 0:00:33.2]}
45... Kh7 {[%clk 0:00:12.9]} 46. Rf7+ {[%clk 0:00:32.3]} 46... Kh6 {[%clk
0:00:12.7]} 47. Nf4 {[%clk 0:00:29.4]} 47... Rg1+ {[%clk 0:00:11.5]} 48. Kf3
{[%clk 0:00:29.1]} 48... Rxg3+ {[%clk 0:00:10]} 49. fxg3 {[%clk 0:00:19.6]}
49... Rd3+ {[%clk 0:00:09.6]} 50. Ke4 {[%clk 0:00:17.3]} 50... Rd4+ {[%clk
0:00:09.1]} 51. Ke5 {[%clk 0:00:16.8]} 51... Rd5+ {[%clk 0:00:07.9]} 52. Kf6
{[%clk 0:00:14.5]} 52... Rd6+ {[%clk 0:00:08.2]} 53. Ne6 {[%clk 0:00:12.6]}
53... Rxe6+ {[%clk 0:00:08.4]} 54. Kf5 {[%clk 0:00:13.2]} 54... Re5+ {[%clk
0:00:08.3]} 55. Kf4 {[%clk 0:00:10.7]} 55... Re4+ {[%clk 0:00:08.4]} 56. Kf3
{[%clk 0:00:11.2]} 56... Re3+ {[%clk 0:00:08.8]} 57. Kg2 {[%clk 0:00:11.5]}
57... Re2+ {[%clk 0:00:08.2]} 58. Rf2 {[%clk 0:00:11.3]} 58... Re6 {[%clk
0:00:06.6]} 59. Rf8 {[%clk 0:00:11.1]} 59... Re3 {[%clk 0:00:05.6]} 60. Rh8#
{[%clk 0:00:10.2]} 1-0

[Event "Late-Titled-Tuesday-Blitz-June-04-2024"]
[Site "Chess.com"]
[Date "2024.06.04"]
[Round "4"]
[White "Kielinkei"]
[Black "Bob_2004"]
[Result "0-1"]
[WhiteElo "2442"]
[BlackElo "2645"]
[TimeControl "180+1"]
[EndTime "14:39:22 PDT"]
[Termination "Bob_2004 won by resignation"]

1. c4 {[%clk 0:03:00.9]} 1... e6 {[%clk 0:03:00.2]} 2. g3 {[%clk 0:03:00.7]}
2... d5 {[%clk 0:03:01.1]} 3. Bg2 {[%clk 0:03:01.1]} 3... Nf6 {[%clk 0:03:01.8]}
4. Nf3 {[%clk 0:03:01.2]} 4... Be7 {[%clk 0:03:02.5]} 5. b3 {[%clk 0:02:58.9]}
5... O-O {[%clk 0:03:02.6]} 6. O-O {[%clk 0:02:59.4]} 6... d4 {[%clk 0:03:03]}
7. Bb2 {[%clk 0:02:53]} 7... c5 {[%clk 0:03:03.5]} 8. e3 {[%clk 0:02:50.7]} 8...
Nc6 {[%clk 0:03:04.1]} 9. exd4 {[%clk 0:02:49.8]} 9... cxd4 {[%clk 0:03:05]} 10.
d3 {[%clk 0:02:49.2]} 10... e5 {[%clk 0:03:00.7]} 11. Re1 {[%clk 0:02:48.4]}
11... Qc7 {[%clk 0:02:52]} 12. Nbd2 {[%clk 0:02:40.4]} 12... Bf5 {[%clk
0:02:51.3]} 13. Qe2 {[%clk 0:02:36.4]} 13... Rfe8 {[%clk 0:02:36.3]} 14. Nh4
{[%clk 0:02:33]} 14... Bg4 {[%clk 0:02:34.8]} 15. Bf3 {[%clk 0:02:32.8]} 15...
Bxf3 {[%clk 0:02:25]} 16. Qxf3 {[%clk 0:02:25.8]} 16... Bb4 {[%clk 0:02:23]} 17.
Ne4 {[%clk 0:02:13.8]} 17... Nxe4 {[%clk 0:01:59.6]} 18. Rxe4 {[%clk 0:02:14.7]}
18... g6 {[%clk 0:02:00.2]} 19. g4 {[%clk 0:02:05.6]} 19... Be7 {[%clk
0:01:56.5]} 20. Qg3 {[%clk 0:01:56]} 20... Bg5 {[%clk 0:01:34.1]} 21. Bc1 {[%clk
0:01:48.9]} 21... Bxc1 {[%clk 0:01:23.4]} 22. Rxc1 {[%clk 0:01:49.8]} 22... Qa5
{[%clk 0:01:24.1]} 23. Kh1 {[%clk 0:01:20.2]} 23... Qxa2 {[%clk 0:01:18.9]} 24.
Rg1 {[%clk 0:01:16.6]} 24... Qxb3 {[%clk 0:01:13.7]} 25. Nf5 {[%clk 0:01:14.2]}
25... Qa3 {[%clk 0:00:52]} 26. Qh4 {[%clk 0:01:00.2]} 26... Qf8 {[%clk
0:00:47.4]} 27. Nh6+ {[%clk 0:00:57.1]} 27... Kh8 {[%clk 0:00:41.2]} 28. g5
{[%clk 0:00:29.7]} 28... a5 {[%clk 0:00:31.3]} 29. Ng4 {[%clk 0:00:29.4]} 29...
Re6 {[%clk 0:00:20.2]} 30. Nf6 {[%clk 0:00:25.2]} 30... h5 {[%clk 0:00:15.9]}
31. gxh6 {[%clk 0:00:09.1]} 31... Ne7 {[%clk 0:00:12.7]} 32. Nd7 {[%clk
0:00:07.9]} 32... Qg8 {[%clk 0:00:07.8]} 33. Nxe5 {[%clk 0:00:06.7]} 33... Nf5
{[%clk 0:00:08.3]} 34. Qg5 {[%clk 0:00:05.4]} 34... Qh7 {[%clk 0:00:08]} 35.
Rge1 {[%clk 0:00:03.1]} 35... Rae8 {[%clk 0:00:06.4]} 36. Ng4 {[%clk 0:00:01.9]}
36... Rxe4 {[%clk 0:00:03.4]} 37. Rxe4 {[%clk 0:00:01.8]} 37... Rg8 {[%clk
0:00:01.7]} 38. Rf4 {[%clk 0:00:01.7]} 38... Rf8 {[%clk 0:00:01.9]} 39. Qf6+
{[%clk 0:00:01.8]} 39... Kg8 {[%clk 0:00:02.3]} 40. Re4 {[%clk 0:00:01.9]} 40...
Nxh6 {[%clk 0:00:02.3]} 41. Ne5 {[%clk 0:00:01.6]} 41... Qg7 {[%clk 0:00:02.1]}
42. Qh4 {[%clk 0:00:01.4]} 42... f6 {[%clk 0:00:02.5]} 43. Ng4 {[%clk 0:00:01]}
43... Nxg4 {[%clk 0:00:02.7]} 44. Rxg4 {[%clk 0:00:01.8]} 44... Qh7 {[%clk
0:00:02.2]} 45. Qg3 {[%clk 0:00:01.9]} 45... Kg7 {[%clk 0:00:02.8]} 46. Qc7+
{[%clk 0:00:02.1]} 46... Rf7 {[%clk 0:00:03.4]} 47. Qd6 {[%clk 0:00:02.9]} 47...
Qh5 {[%clk 0:00:03.8]} 48. Rxd4 {[%clk 0:00:03.3]} 48... Qe5 {[%clk 0:00:03.8]}
49. Qxe5 {[%clk 0:00:03]} 49... fxe5 {[%clk 0:00:04.7]} 50. Rd5 {[%clk
0:00:03.3]} 50... b6 {[%clk 0:00:04.8]} 51. Rxe5 {[%clk 0:00:03.2]} 51... Rxf2
{[%clk 0:00:05.4]} 52. Rb5 {[%clk 0:00:03.8]} 52... Rf6 {[%clk 0:00:05.7]} 53.
c5 {[%clk 0:00:03.9]} 53... Rf5 {[%clk 0:00:03.6]} 54. Rxa5 {[%clk 0:00:04.8]}
54... bxa5 {[%clk 0:00:03.4]} 55. c6 {[%clk 0:00:05.5]} 55... Rc5 {[%clk
0:00:03.9]} 56. d4 {[%clk 0:00:06]} 56... Rxc6 {[%clk 0:00:04.6]} 57. d5 {[%clk
0:00:06.6]} 57... Rd6 {[%clk 0:00:05.3]} 58. Kg2 {[%clk 0:00:06.8]} 58... Rxd5
{[%clk 0:00:05.9]} 0-1